fUSD/lending_fUSD_20260529
["ID","MTS","AMOUNT","RATE_DAILY","PERIOD"]
[423258074,1779999754000,-2813.942987,0.00039533,30]
[423258072,1779999754000,-1209.394621,0.00039533,30]
[423258071,1779999754000,-2813.942987,0.00039533,30]
[423258073,1779999754000,-151.0,0.00039533,30]
[423258070,1779999754000,-151.0,0.00039533,30]
[423258069,1779999754000,-151.0,0.00039533,30]
[423258066,1779999754000,-1209.394621,0.00039533,30]
[423258068,1779999754000,-1209.394621,0.00039533,30]
[423258055,1779999754000,-823.472598,0.00039533,30]
[423258065,1779999754000,-151.0,0.00039533,30]
[423258067,1779999754000,-151.0,0.00039533,30]
[423258075,1779999754000,-1209.394621,0.00039533,30]
[423258058,1779999754000,-2813.942987,0.00039533,30]
[423258059,1779999754000,-1209.394621,0.00039533,30]
[423258060,1779999754000,-151.0,0.00039533,30]
[423258064,1779999754000,-151.0,0.00039533,30]
[423258061,1779999754000,-2813.942987,0.00039533,30]
[423258063,1779999754000,-151.0,0.00039533,30]
[423258062,1779999754000,-1209.394621,0.00039533,30]
[423258086,1779999755000,-5057.359532,0.00039533,30]
[423258093,1779999755000,-6484.072777,0.00039533,30]
[423258094,1779999755000,-6484.072777,0.00039533,30]
[423258089,1779999755000,-5057.359532,0.00039533,30]
[423258090,1779999755000,-5057.359532,0.00039533,30]
[423258088,1779999755000,-5057.359532,0.00039533,30]
[423258087,1779999755000,-5057.359532,0.00039533,30]
[423258085,1779999755000,-5057.359532,0.00039533,30]
[423258081,1779999755000,-2813.942987,0.00039533,30]
[423258084,1779999755000,-5057.359532,0.00039533,30]
[423258082,1779999755000,-159.091088,0.00039533,30]
[423258079,1779999755000,-1209.394621,0.00039533,30]
[423258092,1779999755000,-6484.072777,0.00039533,30]
[423258080,1779999755000,-2813.942987,0.00039533,30]
[423258078,1779999755000,-1209.394621,0.00039533,30]
[423258077,1779999755000,-2813.942987,0.00039533,30]
[423258083,1779999755000,-5057.359532,0.00039533,30]
[423258095,1779999755000,-163.34455,0.00039533,30]
[423258091,1779999755000,-6484.072777,0.00039533,30]
[423258099,1779999755000,-2940.298421,0.00039533,30]
[423258097,1779999755000,-6484.072777,0.00039533,30]
[423258113,1779999755000,-2589.797307,0.00039533,30]
[423258110,1779999755000,-2589.797307,0.00039533,30]
[423258111,1779999755000,-2940.298421,0.00039533,30]
[423258112,1779999755000,-163.34455,0.00039533,30]
[423258114,1779999755000,-2940.298421,0.00039533,30]
[423258107,1779999755000,-163.34455,0.00039533,30]
[423258108,1779999755000,-2940.298421,0.00039533,30]
[423258105,1779999755000,-163.34455,0.00039533,30]
[423258109,1779999755000,-160.122644,0.00039533,30]
[423258104,1779999755000,-6484.072777,0.00039533,30]
[423258102,1779999755000,-163.34455,0.00039533,30]
[423258103,1779999755000,-6484.072777,0.00039533,30]
[423258100,1779999755000,-163.34455,0.00039533,30]
[423258101,1779999755000,-2940.298421,0.00039533,30]
[423258096,1779999755000,-163.34455,0.00039533,30]
[423258098,1779999755000,-6484.072777,0.00039533,30]
[423258106,1779999755000,-2940.298421,0.00039533,30]
[423258131,1779999756000,-158.837251,0.00039533,30]
[423258129,1779999756000,-158.837251,0.00039533,30]
[423258130,1779999756000,-158.837251,0.00039533,30]
[423258128,1779999756000,-158.837251,0.00039533,30]
[423258127,1779999756000,-158.837251,0.00039533,30]
[423258126,1779999756000,-158.837251,0.00039533,30]
[423258124,1779999756000,-2589.797307,0.00039533,30]
[423258125,1779999756000,-2589.797307,0.00039533,30]
[423258116,1779999756000,-2589.797307,0.00039533,30]
[423258122,1779999756000,-158.837251,0.00039533,30]
[423258119,1779999756000,-2940.298421,0.00039533,30]
[423258121,1779999756000,-2589.797307,0.00039533,30]
[423258120,1779999756000,-2589.797307,0.00039533,30]
[423258118,1779999756000,-2940.298421,0.00039533,30]
[423258115,1779999756000,-163.34455,0.00039533,30]
[423258117,1779999756000,-2589.797307,0.00039533,30]
[423258133,1779999756000,-151.0,0.00039533,30]
[423258123,1779999756000,-158.837251,0.00039533,30]
[423258132,1779999756000,-158.007415,0.00039533,30]
[423258145,1779999756000,-2257.783421,0.00039533,30]
[423258137,1779999756000,-3163.195878,0.00039533,30]
[423258134,1779999756000,-151.0,0.00039533,30]
[423258153,1779999756000,-803.04,0.00039533,120]
[423258152,1779999756000,-2257.783421,0.00039533,30]
[423258148,1779999756000,-2257.783421,0.00039533,30]
[423258149,1779999756000,-2257.783421,0.00039533,30]
[423258150,1779999756000,-2257.783421,0.00039533,30]
[423258151,1779999756000,-535.36,0.00039533,30]
[423258147,1779999756000,-2257.783421,0.00039533,30]
[423258146,1779999756000,-2257.783421,0.00039533,30]
[423258154,1779999756000,-3140.005631,0.00039533,30]
[423258144,1779999756000,-2257.783421,0.00039533,30]
[423258141,1779999756000,-3163.195878,0.00039533,30]
[423258142,1779999756000,-3163.195878,0.00039533,30]
[423258140,1779999756000,-3163.195878,0.00039533,30]
[423258139,1779999756000,-3163.195878,0.00039533,30]
[423258138,1779999756000,-3163.195878,0.00039533,30]
[423258136,1779999756000,-3163.195878,0.00039533,30]
[423258143,1779999756000,-3163.195878,0.00039533,30]
[423258135,1779999756000,-151.0,0.00039533,30]
[423258168,1779999757000,-835.527152,0.00039533,30]
[423258172,1779999757000,-220.64,0.00039538,120]
[423258169,1779999757000,-835.527152,0.00039533,30]
[423258173,1779999757000,-2797.766195,0.00039554,30]
[423258170,1779999757000,-2692.60388,0.00039533,30]
[423258167,1779999757000,-835.527152,0.00039533,30]
[423258176,1779999757000,-2797.766195,0.00039554,30]
[423258171,1779999757000,-2692.60388,0.00039533,30]
[423258166,1779999757000,-835.527152,0.00039533,30]
[423258161,1779999757000,-3140.005631,0.00039533,30]
[423258164,1779999757000,-3140.005631,0.00039533,30]
[423258162,1779999757000,-835.527152,0.00039533,30]
[423258163,1779999757000,-835.527152,0.00039533,30]
[423258158,1779999757000,-835.527152,0.00039533,30]
[423258160,1779999757000,-3140.005631,0.00039533,30]
[423258157,1779999757000,-3140.005631,0.00039533,30]
[423258159,1779999757000,-835.527152,0.00039533,30]
[423258155,1779999757000,-3140.005631,0.00039533,30]
[423258175,1779999757000,-2797.766195,0.00039554,30]
[423258165,1779999757000,-3140.005631,0.00039533,30]
[423258156,1779999757000,-3140.005631,0.00039533,30]
[423258177,1779999757000,-795.9586,0.00039554,30]
[423258179,1779999757000,-795.9586,0.00039554,30]
[423258174,1779999757000,-2797.766195,0.00039554,30]
[423258197,1779999757000,-217.575412,0.00039554,30]
[423258195,1779999757000,-151.0,0.00039554,30]
[423258194,1779999757000,-185.130712,0.00039554,30]
[423258193,1779999757000,-151.0,0.00039554,30]
[423258192,1779999757000,-151.0,0.00039554,30]
[423258191,1779999757000,-151.0,0.00039554,30]
[423258190,1779999757000,-151.0,0.00039554,30]
[423258187,1779999757000,-151.0,0.00039554,30]
[423258196,1779999757000,-151.0,0.00039554,30]
[423258188,1779999757000,-151.0,0.00039554,30]
[423258186,1779999757000,-151.0,0.00039554,30]
[423258182,1779999757000,-795.9586,0.00039554,30]
[423258185,1779999757000,-151.0,0.00039554,30]
[423258184,1779999757000,-776.652099,0.00039554,30]
[423258183,1779999757000,-776.652099,0.00039554,30]
[423258180,1779999757000,-776.652099,0.00039554,30]
[423258181,1779999757000,-776.652099,0.00039554,30]
[423258178,1779999757000,-795.9586,0.00039554,30]
[423258189,1779999757000,-162.0092,0.00039554,30]
[423258208,1779999758000,-151.0,0.00039554,30]
[423258213,1779999758000,-596.302988,0.00039554,30]
[423258214,1779999758000,-596.302988,0.00039554,30]
[423258210,1779999758000,-596.302988,0.00039554,30]
[423258211,1779999758000,-151.0,0.00039554,30]
[423258207,1779999758000,-151.0,0.00039554,30]
[423258212,1779999758000,-596.302988,0.00039554,30]
[423258206,1779999758000,-151.0,0.00039554,30]
[423258202,1779999758000,-217.575412,0.00039554,30]
[423258205,1779999758000,-151.0,0.00039554,30]
[423258203,1779999758000,-185.130712,0.00039554,30]
[423258204,1779999758000,-217.575412,0.00039554,30]
[423258200,1779999758000,-217.575412,0.00039554,30]
[423258201,1779999758000,-185.130712,0.00039554,30]
[423258199,1779999758000,-185.130712,0.00039554,30]
[423258198,1779999758000,-151.0,0.00039554,30]
[423258215,1779999758000,-173.135682,0.00039554,30]
[423258209,1779999758000,-208.975725,0.00039554,30]
[423258216,1779999758000,-151.0,0.00039554,30]
[423258217,1779999758000,-151.0,0.00039554,30]
[423258218,1779999758000,-151.0,0.00039554,30]
[423258234,1779999758000,-295.860613,0.00039554,30]
[423258235,1779999758000,-151.0,0.00039554,30]
[423258236,1779999758000,-209.909389,0.00039554,30]
[423258231,1779999758000,-295.860613,0.00039554,30]
[423258233,1779999758000,-209.909389,0.00039554,30]
[423258230,1779999758000,-209.909389,0.00039554,30]
[423258229,1779999758000,-151.0,0.00039554,30]
[423258227,1779999758000,-295.860613,0.00039554,30]
[423258232,1779999758000,-151.0,0.00039554,30]
[423258226,1779999758000,-209.909389,0.00039554,30]
[423258228,1779999758000,-151.0,0.00039554,30]
[423258221,1779999758000,-151.0,0.00039554,30]
[423258219,1779999758000,-151.0,0.00039554,30]
[423258222,1779999758000,-151.0,0.00039554,30]
[423258220,1779999758000,-151.0,0.00039554,30]
[423258225,1779999758000,-151.0,0.00039554,30]
[423258224,1779999758000,-151.0,0.00039554,30]
[423258223,1779999758000,-295.860613,0.00039554,30]
[423258247,1779999759000,-312.629572,0.00039554,30]
[423258252,1779999759000,-1050.0,0.00039554,120]
[423258254,1779999759000,-156.0,0.00039554,120]
[423258251,1779999759000,-151.0,0.00039554,120]
[423258253,1779999759000,-410.0,0.00039554,120]
[423258249,1779999759000,-157.0,0.00039554,120]
[423258250,1779999759000,-283.0,0.00039554,120]
[423258248,1779999759000,-312.629572,0.00039554,30]
[423258245,1779999759000,-312.629572,0.00039554,30]
[423258237,1779999759000,-151.0,0.00039554,30]
[423258246,1779999759000,-312.629572,0.00039554,30]
[423258244,1779999759000,-806.154465,0.00039554,30]
[423258239,1779999759000,-806.154465,0.00039554,30]
[423258241,1779999759000,-806.154465,0.00039554,30]
[423258242,1779999759000,-151.0,0.00039554,30]
[423258240,1779999759000,-151.0,0.00039554,30]
[423258238,1779999759000,-151.0,0.00039554,30]
[423258258,1779999759000,-256.06759726,0.00039589,120]
[423258243,1779999759000,-806.154465,0.00039554,30]
[423258255,1779999759000,-158.0,0.00039554,120]
[423258277,1779999759000,-2837.86269198,0.00039669,120]
[423258257,1779999759000,-152.0,0.00039589,30]
[423258256,1779999759000,-1000.0,0.00039558,90]
[423258274,1779999759000,-2837.86269198,0.00039669,120]
[423258272,1779999759000,-2837.86269198,0.00039669,120]
[423258275,1779999759000,-2837.86269198,0.00039669,120]
[423258273,1779999759000,-2837.86269198,0.00039669,120]
[423258269,1779999759000,-2837.86269198,0.00039669,120]
[423258271,1779999759000,-2837.86269198,0.00039669,120]
[423258270,1779999759000,-2837.86269198,0.00039669,120]
[423258268,1779999759000,-2837.86269198,0.00039669,120]
[423258276,1779999759000,-2837.86269198,0.00039669,120]
[423258265,1779999759000,-152.0,0.00039668,30]
[423258264,1779999759000,-5103.67910652,0.000396,120]
[423258266,1779999759000,-2837.86269198,0.00039669,120]
[423258263,1779999759000,-254.94,0.000396,47]
[423258260,1779999759000,-160.0,0.000396,47]
[423258262,1779999759000,-152.0,0.000396,120]
[423258261,1779999759000,-160.0,0.000396,47]
[423258259,1779999759000,-1000.0,0.00039599,47]
[423258267,1779999759000,-2837.86269198,0.00039669,120]
[423258287,1779999760000,-500.0,0.00039726,120]
[423258289,1779999760000,-500.0,0.00039726,120]
[423258293,1779999760000,-297.74614973,0.00039726,120]
[423258292,1779999760000,-500.0,0.00039726,120]
[423258294,1779999760000,-1000.0,0.00039779,35]
[423258288,1779999760000,-500.0,0.00039726,120]
[423258290,1779999760000,-500.0,0.00039726,120]
[423258286,1779999760000,-500.0,0.00039726,120]
[423258282,1779999760000,-317.74478148,0.0003972,120]
[423258283,1779999760000,-500.0,0.00039726,120]
[423258284,1779999760000,-500.0,0.00039726,120]
[423258280,1779999760000,-5288.0,0.000397,117]
[423258281,1779999760000,-287.52989891,0.0003972,120]
[423258279,1779999760000,-1000.0,0.00039699,117]
[423258278,1779999760000,-2837.86269197,0.00039669,120]
[423258291,1779999760000,-500.0,0.00039726,120]
[423258285,1779999760000,-500.0,0.00039726,120]
[423258296,1779999760000,-395.42,0.000398,120]
[423258305,1779999760000,-2837.86269198,0.00039806,120]
[423258298,1779999760000,-705.5,0.000398,120]
[423258315,1779999760000,-2837.86269197,0.00039806,120]
[423258313,1779999760000,-2837.86269198,0.00039806,120]
[423258312,1779999760000,-2837.86269198,0.00039806,120]
[423258311,1779999760000,-2837.86269198,0.00039806,120]
[423258310,1779999760000,-2837.86269198,0.00039806,120]
[423258307,1779999760000,-2837.86269198,0.00039806,120]
[423258309,1779999760000,-2837.86269198,0.00039806,120]
[423258308,1779999760000,-2837.86269198,0.00039806,120]
[423258295,1779999760000,-331.0,0.00039784,120]
[423258303,1779999760000,-2837.86269198,0.00039806,120]
[423258306,1779999760000,-2837.86269198,0.00039806,120]
[423258304,1779999760000,-2837.86269198,0.00039806,120]
[423258299,1779999760000,-222.02,0.000398,120]
[423258302,1779999760000,-2956.2,0.000398,120]
[423258301,1779999760000,-250.0,0.000398,30]
[423258300,1779999760000,-250.0,0.000398,30]
[423258297,1779999760000,-429.99,0.000398,120]
[423258314,1779999760000,-2837.86269198,0.00039806,120]
[423258327,1779999761000,-500.0,0.00039999,31]
[423258326,1779999761000,-225.15335107,0.00039999,31]
[423258331,1779999761000,-500.0,0.00039999,31]
[423258330,1779999761000,-500.0,0.00039999,31]
[423258329,1779999761000,-589.91552852,0.00039999,31]
[423258325,1779999761000,-406.25038843,0.00039999,31]
[423258328,1779999761000,-500.0,0.00039999,31]
[423258323,1779999761000,-1000.0,0.00039999,56]
[423258320,1779999761000,-1000.0,0.00039998,31]
[423258322,1779999761000,-1000.0,0.00039999,50]
[423258321,1779999761000,-1000.0,0.00039999,40]
[423258319,1779999761000,-317.74478148,0.00039994,120]
[423258318,1779999761000,-287.52989891,0.00039994,120]
[423258317,1779999761000,-971.80152732,0.000399,120]
[423258316,1779999761000,-5083.08317811,0.0003988,120]
[423258333,1779999761000,-500.0,0.00039999,31]
[423258324,1779999761000,-407.88299007,0.00039999,31]
[423258335,1779999761000,-500.0,0.00039999,31]
[423258334,1779999761000,-500.0,0.00039999,31]
[423258332,1779999761000,-500.0,0.00039999,31]
[423258353,1779999761000,-7299.90127558,0.00039999,31]
[423258351,1779999761000,-7299.90127558,0.00039999,31]
[423258350,1779999761000,-2040.94364666,0.00039999,31]
[423258348,1779999761000,-2040.94364666,0.00039999,31]
[423258349,1779999761000,-2040.94364666,0.00039999,31]
[423258347,1779999761000,-2040.94364666,0.00039999,31]
[423258346,1779999761000,-2040.94364666,0.00039999,31]
[423258344,1779999761000,-2040.94364666,0.00039999,31]
[423258352,1779999761000,-7299.90127558,0.00039999,31]
[423258343,1779999761000,-537.65022837,0.00039999,31]
[423258342,1779999761000,-500.0,0.00039999,31]
[423258340,1779999761000,-500.0,0.00039999,31]
[423258341,1779999761000,-246.60315747,0.00039999,31]
[423258338,1779999761000,-461.96919351,0.00039999,31]
[423258339,1779999761000,-500.0,0.00039999,31]
[423258336,1779999761000,-500.0,0.00039999,31]
[423258337,1779999761000,-500.0,0.00039999,31]
[423258345,1779999761000,-2040.94364666,0.00039999,31]
[423258363,1779999762000,-254.08,0.0004,49]
[423258366,1779999762000,-3870.56272236,0.0004,120]
[423258370,1779999762000,-274.98305759,0.0004,30]
[423258368,1779999762000,-3084.32276378,0.0004,30]
[423258367,1779999762000,-3839.71004717,0.0004,120]
[423258364,1779999762000,-150.0,0.0004,120]
[423258365,1779999762000,-2000.0,0.0004,120]
[423258362,1779999762000,-244.98,0.0004,49]
[423258358,1779999762000,-170.53731123,0.0004,50]
[423258359,1779999762000,-3080.55210146,0.0004,120]
[423258360,1779999762000,-1619.3902137,0.0004,120]
[423258355,1779999762000,-304.71864469,0.0004,120]
[423258357,1779999762000,-160.0,0.0004,49]
[423258356,1779999762000,-1378.68495782,0.0004,30]
[423258354,1779999762000,-339.48,0.0004,120]
[423258369,1779999762000,-189.44419377,0.0004,120]
[423258361,1779999762000,-244.98,0.0004,49]
[423258372,1779999762000,-1232.4563872,0.0004,120]
[423258391,1779999762000,-12936.74,0.0004029,60]
[423258373,1779999762000,-183.68105486,0.0004,40]
[423258371,1779999762000,-378.9572089,0.0004,120]
[423258390,1779999762000,-304.45,0.0004029,60]
[423258389,1779999762000,-317.74478148,0.00040268,120]
[423258387,1779999762000,-2576.16,0.00040187,120]
[423258388,1779999762000,-287.52989891,0.00040268,120]
[423258385,1779999762000,-2576.16,0.00040187,120]
[423258384,1779999762000,-2576.16,0.00040187,120]
[423258383,1779999762000,-258.41,0.00040137,120]
[423258386,1779999762000,-2576.16,0.00040187,120]
[423258381,1779999762000,-341.81,0.00040058,30]
[423258382,1779999762000,-150.0,0.00040136,30]
[423258376,1779999762000,-2729.79616672,0.0004,120]
[423258375,1779999762000,-14462.14550943,0.0004,90]
[423258377,1779999762000,-3200.78687792,0.0004,30]
[423258374,1779999762000,-1254.92474088,0.0004,120]
[423258380,1779999762000,-2052.1,0.00040044,120]
[423258379,1779999762000,-1129.8324401,0.0004,30]
[423258378,1779999762000,-896.83312842,0.0004,30]
[423258401,1779999763000,-162.0,0.00040533,120]
[423258406,1779999763000,-151.0,0.00040554,120]
[423258407,1779999763000,-1050.0,0.00040554,120]
[423258404,1779999763000,-157.0,0.00040554,120]
[423258405,1779999763000,-283.0,0.00040554,120]
[423258402,1779999763000,-287.52989891,0.00040542,120]
[423258403,1779999763000,-317.74478148,0.00040542,120]
[423258399,1779999763000,-489.0,0.00040533,120]
[423258409,1779999763000,-156.0,0.00040554,120]
[423258398,1779999763000,-158.0,0.00040533,120]
[423258397,1779999763000,-151.0,0.00040533,120]
[423258395,1779999763000,-801.50504598,0.000405,120]
[423258396,1779999763000,-706.0,0.00040533,120]
[423258394,1779999763000,-187.32,0.000404,51]
[423258393,1779999763000,-2656.92,0.0004029,60]
[423258392,1779999763000,-1368.06,0.0004029,60]
[423258400,1779999763000,-159.0,0.00040533,120]
[423258411,1779999763000,-1512.87471622,0.0004059,120]
[423258408,1779999763000,-410.0,0.00040554,120]
[423258410,1779999763000,-158.0,0.00040554,120]
[423258428,1779999763000,-317.74478148,0.00040816,120]
[423258426,1779999763000,-2946.57926318,0.000408,60]
[423258427,1779999763000,-287.52989891,0.00040816,120]
[423258425,1779999763000,-2716.6980108,0.000408,120]
[423258424,1779999763000,-1000.0,0.00040799,60]
[423258422,1779999763000,-495.80544938,0.00040767,120]
[423258423,1779999763000,-150.0,0.00040767,120]
[423258421,1779999763000,-350.0,0.00040767,120]
[423258413,1779999763000,-160.0,0.000406,52]
[423258419,1779999763000,-1088.57076266,0.0004075,120]
[423258418,1779999763000,-3213.21393117,0.00040747,120]
[423258417,1779999763000,-1414.07045876,0.000407,120]
[423258416,1779999763000,-150.0,0.00040684,30]
[423258415,1779999763000,-899.67529413,0.00040658,120]
[423258414,1779999763000,-1000.0,0.00040623,79]
[423258412,1779999763000,-1000.0,0.00040599,52]
[423258429,1779999763000,-503.56418618,0.00040959,120]
[423258420,1779999763000,-350.0,0.00040767,120]
[423258443,1779999764000,-1000000.0,0.00041,120]
[423258442,1779999764000,-160.0,0.00041,54]
[423258447,1779999764000,-1544.0,0.00041,120]
[423258445,1779999764000,-14702.91655832,0.00041,30]
[423258446,1779999764000,-244.98,0.00041,54]
[423258441,1779999764000,-160.0,0.00041,54]
[423258440,1779999764000,-151.0,0.00041,30]
[423258439,1779999764000,-570.72419099,0.00041,30]
[423258434,1779999764000,-871640.12758072,0.00041,120]
[423258438,1779999764000,-1000000.0,0.00041,120]
[423258433,1779999764000,-1000.0,0.00040999,45]
[423258435,1779999764000,-275318.0,0.00041,120]
[423258436,1779999764000,-1007656.88,0.00041,120]
[423258432,1779999764000,-1000.0,0.00040999,30]
[423258431,1779999764000,-1000.0,0.00040999,120]
[423258430,1779999764000,-152.81152446,0.00040999,120]
[423258444,1779999764000,-1613.78502599,0.00041,120]
[423258437,1779999764000,-1000000.0,0.00041,120]
[423258449,1779999764000,-1544.0,0.00041,120]
[423258448,1779999764000,-1544.0,0.00041,120]
[423258450,1779999764000,-1544.0,0.00041,120]
[423258469,1779999764000,-151.0,0.00041,120]
[423258467,1779999764000,-151.0,0.00041,120]
[423258466,1779999764000,-251.62,0.00041,54]
[423258465,1779999764000,-244.98,0.00041,54]
[423258464,1779999764000,-1589.66327408,0.00041,120]
[423258463,1779999764000,-1544.0,0.00041,120]
[423258462,1779999764000,-1544.0,0.00041,120]
[423258460,1779999764000,-1544.0,0.00041,120]
[423258461,1779999764000,-1544.0,0.00041,120]
[423258468,1779999764000,-175.13864091,0.00041,120]
[423258457,1779999764000,-1544.0,0.00041,120]
[423258458,1779999764000,-1544.0,0.00041,120]
[423258452,1779999764000,-1544.0,0.00041,120]
[423258454,1779999764000,-1544.0,0.00041,120]
[423258451,1779999764000,-1544.0,0.00041,120]
[423258453,1779999764000,-1544.0,0.00041,120]
[423258456,1779999764000,-1544.0,0.00041,120]
[423258459,1779999764000,-1544.0,0.00041,120]
[423258455,1779999764000,-1544.0,0.00041,120]
[423258485,1779999765000,-151.0,0.00041,120]
[423258480,1779999765000,-151.0,0.00041,120]
[423258483,1779999765000,-151.0,0.00041,120]
[423258482,1779999765000,-151.0,0.00041,120]
[423258481,1779999765000,-151.0,0.00041,120]
[423258484,1779999765000,-151.0,0.00041,120]
[423258479,1779999765000,-151.0,0.00041,120]
[423258477,1779999765000,-151.0,0.00041,120]
[423258476,1779999765000,-151.0,0.00041,120]
[423258473,1779999765000,-151.0,0.00041,120]
[423258475,1779999765000,-151.0,0.00041,120]
[423258474,1779999765000,-245.0,0.00041,120]
[423258472,1779999765000,-151.0,0.00041,120]
[423258471,1779999765000,-151.0,0.00041,120]
[423258470,1779999765000,-151.0,0.00041,120]
[423258487,1779999765000,-154.06251187,0.00041,120]
[423258478,1779999765000,-151.0,0.00041,120]
[423258488,1779999765000,-153.0,0.00041,120]
[423258507,1779999765000,-2000.0,0.00041,120]
[423258492,1779999765000,-153.0,0.00041,120]
[423258486,1779999765000,-151.0,0.00041,120]
[423258506,1779999765000,-2000.0,0.00041,120]
[423258504,1779999765000,-2000.0,0.00041,120]
[423258505,1779999765000,-2000.0,0.00041,120]
[423258500,1779999765000,-154.0,0.00041,120]
[423258503,1779999765000,-2000.0,0.00041,120]
[423258501,1779999765000,-253.40818272,0.00041,120]
[423258499,1779999765000,-154.0,0.00041,120]
[423258502,1779999765000,-500.0,0.00041,60]
[423258497,1779999765000,-153.0,0.00041,120]
[423258496,1779999765000,-153.0,0.00041,120]
[423258495,1779999765000,-153.0,0.00041,120]
[423258493,1779999765000,-153.0,0.00041,120]
[423258494,1779999765000,-153.0,0.00041,120]
[423258489,1779999765000,-153.0,0.00041,120]
[423258490,1779999765000,-153.0,0.00041,120]
[423258498,1779999765000,-228.02252743,0.00041,120]
[423258491,1779999765000,-153.0,0.00041,120]
[423258521,1779999766000,-292.519942,0.00041,30]
[423258522,1779999766000,-151.0,0.00041,30]
[423258523,1779999766000,-2775.063421,0.00041,30]
[423258524,1779999766000,-2775.063421,0.00041,30]
[423258525,1779999766000,-504.477119,0.00041,30]
[423258526,1779999766000,-2775.063421,0.00041,30]
[423258519,1779999766000,-2775.063421,0.00041,30]
[423258520,1779999766000,-1062.9522,0.00041,120]
[423258518,1779999766000,-151.0,0.00041,30]
[423258509,1779999766000,-1544.0,0.00041,120]
[423258517,1779999766000,-151.0,0.00041,30]
[423258515,1779999766000,-2110.0,0.00041,30]
[423258514,1779999766000,-2000.0,0.00041,120]
[423258511,1779999766000,-151.0,0.00041,120]
[423258513,1779999766000,-151.0,0.00041,120]
[423258512,1779999766000,-151.0,0.00041,120]
[423258510,1779999766000,-1544.0,0.00041,120]
[423258508,1779999766000,-2000.0,0.00041,120]
[423258516,1779999766000,-151.0,0.00041,30]
[423258527,1779999766000,-2430.99673,0.00041,30]
[423258530,1779999766000,-2430.99673,0.00041,30]
[423258528,1779999766000,-504.477119,0.00041,30]
[423258529,1779999766000,-264.399684,0.00041,30]
[423258546,1779999766000,-151.0,0.00041,30]
[423258548,1779999766000,-719.725494,0.00041,30]
[423258544,1779999766000,-151.0,0.00041,30]
[423258545,1779999766000,-719.725494,0.00041,30]
[423258543,1779999766000,-151.0,0.00041,30]
[423258542,1779999766000,-3163.865892,0.00041,30]
[423258540,1779999766000,-3163.865892,0.00041,30]
[423258541,1779999766000,-151.0,0.00041,30]
[423258547,1779999766000,-151.0,0.00041,30]
[423258539,1779999766000,-151.0,0.00041,30]
[423258538,1779999766000,-3163.865892,0.00041,30]
[423258533,1779999766000,-504.477119,0.00041,30]
[423258532,1779999766000,-2430.99673,0.00041,30]
[423258531,1779999766000,-504.477119,0.00041,30]
[423258535,1779999766000,-3163.865892,0.00041,30]
[423258537,1779999766000,-151.0,0.00041,30]
[423258536,1779999766000,-2430.99673,0.00041,30]
[423258534,1779999766000,-151.0,0.00041,30]
[423258564,1779999767000,-1209.394621,0.00041,30]
[423258557,1779999767000,-823.472598,0.00041,30]
[423258563,1779999767000,-151.0,0.00041,30]
[423258562,1779999767000,-151.0,0.00041,30]
[423258561,1779999767000,-1209.394621,0.00041,30]
[423258560,1779999767000,-2813.942987,0.00041,30]
[423258559,1779999767000,-151.0,0.00041,30]
[423258558,1779999767000,-823.472598,0.00041,30]
[423258553,1779999767000,-719.725494,0.00041,30]